fUST/lending_fUST_20250427
["ID","MTS","AMOUNT","RATE_DAILY","PERIOD"]
[359110841,1745711451983,-796.5,0.00018082,2]
[359110842,1745711451993,-999.56,0.00018082,2]
[359110844,1745711452002,-400.0,0.00018082,2]
[359110846,1745711452011,-1040.18,0.00018082,2]
[359110848,1745711452021,-533.01,0.00018082,2]
[359110850,1745711452030,-400.0,0.00018356,2]
[359110851,1745711452040,-400.0,0.00018356,2]
[359110852,1745711452049,-515.17,0.00018356,2]
[359110853,1745711452059,-522.68,0.00018356,2]
[359110854,1745711452068,-400.0,0.00018356,2]
[359110856,1745711452078,-349.075321,0.00018356,2]
[359110858,1745711452087,-349.075321,0.00018356,2]
[359110860,1745711452096,-400.0,0.00018356,2]
[359110862,1745711452106,-551.54,0.00018356,2]
[359110863,1745711452116,-1661.51,0.00018356,2]
[359110864,1745711452126,-1221.28,0.00018356,2]
[359110865,1745711452135,-400.0,0.00018356,2]
[359110866,1745711452144,-400.0,0.00018356,2]
[359110867,1745711452153,-1385.68,0.00018356,2]
[359110868,1745711452163,-400.0,0.00018356,2]
[359110869,1745711452172,-544.9,0.00018356,2]
[359110870,1745711452181,-400.0,0.00018356,2]
[359110871,1745711452191,-326.96,0.00018356,2]
[359110872,1745711452201,-622.12,0.00018356,2]
[359110874,1745711452210,-400.0,0.00018356,2]
[359110875,1745711452219,-667.99,0.00018356,2]
[359110877,1745711452229,-674.4,0.00018356,2]
[359110878,1745711452238,-400.0,0.00018356,2]
[359110880,1745711452248,-400.0,0.00018356,2]
[359110882,1745711452258,-400.0,0.00018356,2]
[359110884,1745711452267,-560.1,0.00018356,2]
[359110886,1745711452277,-796.5,0.00018356,2]
[359110888,1745711452288,-999.56,0.00018356,2]
[359110890,1745711452297,-400.0,0.00018356,2]
[359110891,1745711452308,-1040.18,0.00018356,2]
[359110892,1745711452319,-533.01,0.00018356,2]
[359110893,1745711452329,-163.402257,0.00018376,3]
[359110894,1745711452339,-1048.79633727,0.00018383,2]
[359110895,1745711452348,-171.208,0.00018385,2]
[359110896,1745711452359,-151.0,0.000185,2]
[359110897,1745711452369,-151.0,0.00018549,2]
[359110898,1745711452379,-151.0,0.0001863,2]
[359110899,1745711452389,-151.0,0.0001863,2]
[359110900,1745711452399,-400.0,0.0001863,2]
[359110901,1745711452409,-400.0,0.0001863,2]
[359110902,1745711452419,-400.0,0.0001863,2]
[359110903,1745711452429,-400.0,0.0001863,2]
[359110904,1745711452439,-551.54,0.0001863,2]
[359110905,1745711452449,-1661.51,0.0001863,2]
[359110906,1745711452459,-1221.28,0.0001863,2]
[359110907,1745711452468,-400.0,0.0001863,2]
[359110908,1745711452478,-218.53,0.0001863,2]
[359110909,1745711452489,-1385.68,0.0001863,2]
[359110910,1745711452498,-400.0,0.0001863,2]
[359110911,1745711452509,-544.9,0.0001863,2]
[359110912,1745711452519,-400.0,0.0001863,2]
[359110913,1745711452528,-622.12,0.0001863,2]
[359110914,1745711452537,-397.06,0.0001863,2]
[359110915,1745711452548,-667.99,0.0001863,2]
[359110916,1745711452557,-674.4,0.0001863,2]
[359110917,1745711452567,-400.0,0.0001863,2]
[359110918,1745711452577,-404.48,0.0001863,2]
[359110919,1745711452587,-400.0,0.0001863,2]
[359110920,1745711452597,-560.1,0.0001863,2]
[359110921,1745711452607,-796.5,0.0001863,2]
[359110922,1745711452616,-999.56,0.0001863,2]
[359110923,1745711452626,-400.0,0.0001863,2]
[359110924,1745711452636,-1040.18,0.0001863,2]
[359110925,1745711452647,-533.01,0.0001863,2]
[359110926,1745711452656,-400.0,0.00018904,2]
[359110927,1745711452665,-400.0,0.00018904,2]
[359110928,1745711452675,-400.0,0.00018904,2]
[359110929,1745711452685,-400.0,0.00018904,2]
[359110930,1745711452694,-551.54,0.00018904,2]
[359110931,1745711452704,-1661.51,0.00018904,2]
[359110932,1745711452714,-1221.28,0.00018904,2]
[359110933,1745711452723,-400.0,0.00018904,2]
[359110934,1745711452733,-1385.68,0.00018904,2]
[359110935,1745711452742,-400.0,0.00018904,2]
[359110936,1745711452752,-544.9,0.00018904,2]
[359110937,1745711452762,-400.0,0.00018904,2]
[359110939,1745711452773,-622.12,0.00018904,2]
[359110940,1745711452782,-667.99,0.00018904,2]
[359110942,1745711452792,-674.4,0.00018904,2]
[359110943,1745711452802,-400.0,0.00018904,2]
[359110944,1745711452811,-431.48,0.00018904,2]
[359110945,1745711452821,-560.1,0.00018904,2]
[359110947,1745711452831,-796.5,0.00018904,2]
[359110949,1745711452843,-999.56,0.00018904,2]
[359110951,1745711452853,-400.0,0.00018904,2]
[359110953,1745711452862,-1040.18,0.00018904,2]
[359110955,1745711452872,-533.01,0.00018904,2]
[359110957,1745711452883,-151.0,0.000191,2]
[359110959,1745711452893,-1000.0,0.00019152,2]
[359110960,1745711452902,-605.77204586,0.00019152,2]
[359110962,1745711452912,-1000.0,0.00019152,2]
[359110963,1745711452922,-1000.0,0.00019152,2]
[359110964,1745711452933,-1000.0,0.00019152,2]
[359110965,1745711452942,-400.0,0.00019178,2]
[359110966,1745711452951,-400.0,0.00019178,2]
[359110967,1745711452961,-400.0,0.00019178,2]
[359110968,1745711452970,-400.0,0.00019178,2]
[359110969,1745711452980,-551.54,0.00019178,2]
[359110970,1745711452990,-1661.51,0.00019178,2]
[359110971,1745711453000,-1221.28,0.00019178,2]
[359110972,1745711453010,-503.62,0.00019178,2]
[359110973,1745711453020,-1385.68,0.00019178,2]
[359110974,1745711453030,-400.0,0.00019178,2]
[359110975,1745711453039,-544.9,0.00019178,2]
[359110976,1745711453049,-400.0,0.00019178,2]
[359110977,1745711453059,-521.77108,0.00019178,2]
[359110978,1745711453126,-511.86226568,0.00016438,2]
[359110979,1745711453136,-100.34892,0.00019178,2]
[359110980,1745711453147,-667.99,0.00019178,2]
[359110981,1745711453156,-674.4,0.00019178,2]
[359110982,1745711453166,-400.0,0.00019178,2]
[359110983,1745711453175,-560.1,0.00019178,2]
[359110984,1745711453186,-796.5,0.00019178,2]
[359110985,1745711453196,-999.56,0.00019178,2]
[359110986,1745711453206,-400.0,0.00019178,2]
[359110987,1745711453217,-1040.18,0.00019178,2]
[359110988,1745711453226,-533.01,0.00019178,2]
[359110989,1745711453236,-300.0,0.00019178,2]
[359110990,1745711453246,-1048.79633727,0.00019279,2]
[359110991,1745711453256,-545.0,0.00019435,2]
[359110992,1745711453266,-706.0,0.00019435,2]
[359110993,1745711453275,-2217.0,0.00019435,2]
[359110994,1745711453285,-3471.65483511,0.00019452,2]
[359110995,1745711453299,-2020.60255138,0.00019452,2]
[359110996,1745711453338,-30.69100287,0.00019452,2]
[359110997,1745711453350,-5962.27370521,0.00019452,2]
[359110998,1745711453362,-400.0,0.00019452,2]
[359111000,1745711453371,-373.16,0.00019452,2]
[359111002,1745711453381,-400.0,0.00019452,2]
[359111004,1745711453391,-400.0,0.00019452,2]
[359111006,1745711453400,-551.54,0.00019452,2]
[359111008,1745711453410,-1661.51,0.00019452,2]
[359111009,1745711453421,-1221.28,0.00019452,2]
[359111011,1745711453431,-1385.68,0.00019452,2]
[359111012,1745711453440,-400.0,0.00019452,2]
[359111014,1745711453449,-544.9,0.00019452,2]
[359111016,1745711453458,-400.0,0.00019452,2]
[359111017,1745711453468,-622.12,0.00019452,2]
[359111018,1745711453477,-667.99,0.00019452,2]
[359111019,1745711453487,-674.4,0.00019452,2]
[359111020,1745711453497,-205.56,0.00019452,2]
[359111021,1745711453507,-560.1,0.00019452,2]
[359111022,1745711453516,-796.5,0.00019452,2]
[359111023,1745711453526,-999.56,0.00019452,2]
[359111024,1745711453535,-400.0,0.00019452,2]
[359111025,1745711453545,-1040.18,0.00019452,2]
[359111026,1745711453554,-533.01,0.00019452,2]
[359111027,1745711453564,-151.0,0.00019725,2]
[359111028,1745711453573,-400.0,0.00019726,2]
[359111029,1745711453583,-400.0,0.00019726,2]
[359111030,1745711453594,-400.0,0.00019726,2]
[359111031,1745711453604,-551.54,0.00019726,2]
[359111032,1745711453615,-1661.51,0.00019726,2]
[359111033,1745711453626,-1221.28,0.00019726,2]
[359111034,1745711453636,-1385.68,0.00019726,2]
[359111035,1745711453645,-400.0,0.00019726,2]
[359111036,1745711453655,-544.9,0.00019726,2]
[359111037,1745711453665,-400.0,0.00019726,2]
[359111038,1745711453674,-622.12,0.00019726,2]
[359111039,1745711453684,-667.99,0.00019726,2]
[359111040,1745711453693,-674.4,0.00019726,2]
[359111041,1745711453703,-560.1,0.00019726,2]
[359111042,1745711453714,-796.5,0.00019726,2]
[359111043,1745711453723,-999.56,0.00019726,2]
[359111044,1745711453733,-229.36393309,0.00019726,2]
[359111045,1745711453743,-1040.18,0.00019726,2]
[359111046,1745711453752,-533.01,0.00019726,2]
[359111047,1745711453762,-369.3415282,0.00019918,2]
[359111048,1745711453771,-502.90211372,0.00019973,2]
[359111049,1745711453781,-500.0,0.00019973,2]
[359111050,1745711453791,-500.0,0.00019973,2]
[359111051,1745711453800,-151.0,0.00019973,2]
[359111052,1745711453810,-40933.90658398,0.00019998,3]
[359111053,1745711453931,-400.0,0.00016438,2]
[359111054,1745711453941,-400.0,0.00016438,2]
[359111055,1745711453951,-400.0,0.00016712,2]
[359111056,1745711453961,-400.0,0.00016712,2]
[359111057,1745711453970,-400.0,0.00016986,2]
[359111058,1745711453980,-28.12413395,0.00016986,2]
[359111059,1745711453992,-350.44267418,0.00016986,2]
[359111060,1745711454002,-400.0,0.0001726,2]
[359111061,1745711454011,-400.0,0.00017534,2]
[359111062,1745711454022,-400.0,0.00017808,2]
[359111063,1745711454032,-400.0,0.00018082,2]
[359111064,1745711454042,-400.0,0.00018356,2]
[359111065,1745711454053,-400.0,0.0001863,2]
[359111066,1745711454063,-239.5,0.00018904,2]
[359111067,1745711454073,-25609.23572566,0.00019998,3]
[359111068,1745711454083,-6887.3888999,0.00019998,2]
[359111069,1745711454094,-1525.39979176,0.00019998,2]
[359111070,1745711454777,-3913.56856213,0.00019998,2]
[359111071,1745711570248,-250.0,0.00013499,2]
[359111072,1745711570288,-1000.0,0.00013573,2]
[359111073,1745711570312,-500.0,0.00013673,2]
[359111074,1745711570336,-500.0,0.00013673,2]
[359111075,1745711570360,-500.0,0.00013673,2]
[359111076,1745711570385,-500.0,0.00013673,2]
[359111077,1745711570409,-500.0,0.00013673,2]
[359111078,1745711570434,-164.0,0.00013698,2]
[359111098,1745712545145,-300.0,0.00012998,2]
[359111099,1745712545168,-10703.35361162,0.00012999,2]
[359111100,1745712545190,-1179.85312156,0.00013,2]
[359111148,1745712632788,-993.14687844,0.00013,2]
[359111150,1745712632798,-231.7357308,0.00013111,2]
[359111152,1745712632808,-1000.0,0.00013299,2]
[359111154,1745712632818,-250.0,0.00013399,2]
[359111156,1745712632827,-2717.32569943,0.00013599,2]
[359111159,1745712632837,-300.0,0.00013672,2]
[359111160,1745712632847,-841.46272581,0.00013672,2]
[359111161,1745712632859,-303.09553512,0.00013672,2]
[359111162,1745712632877,-55.44173907,0.00013672,2]
[359111163,1745712632887,-300.0,0.00013672,2]
[359111164,1745712632896,-500.0,0.00013673,2]
[359111166,1745712632906,-183.60976531,0.00013673,2]
[359111169,1745712632918,-500.0,0.00013673,2]
[359111171,1745712632928,-501.23675681,0.00013673,2]
[359111173,1745712632937,-496.29329545,0.00013673,2]
[359111175,1745712632946,-500.0,0.00013673,2]
[359111177,1745712632956,-500.0,0.00013673,2]
[359111179,1745712632966,-500.0,0.00013673,2]
[359111180,1745712632976,-498.26789633,0.00013673,2]
[359111181,1745712632987,-501.08251052,0.00013673,2]
[359111182,1745712632997,-501.1063021,0.00013673,2]
[359111183,1745712633007,-500.0,0.00013673,2]
[359111184,1745712633017,-500.0,0.00013673,2]
[359111185,1745712633027,-500.0,0.00013673,2]
[359111186,1745712633037,-287.01917886,0.00013673,2]
[359111187,1745712633047,-500.0,0.00013673,2]
[359111188,1745712633057,-882.63546228,0.00013673,2]
[359111189,1745712633068,-500.0,0.00013698,2]
[359111190,1745712633079,-238.02699836,0.00013698,2]
[359111191,1745712633089,-220.02508567,0.00013698,2]
[359111192,1745712633099,-500.0,0.00013698,2]
[359111193,1745712633109,-469.81561146,0.00013698,2]
[359111194,1745712633119,-181.036057,0.00013699,2]
[359111195,1745712633130,-2717.32569941,0.00014284,2]
[359111196,1745712633140,-2270.59401302,0.00014427,2]
[359111197,1745712633151,-2717.32569941,0.00014969,2]
[359111198,1745712633161,-420.0,0.00014983,2]
[359111199,1745712633171,-269.0,0.00014983,2]
[359111200,1745712633181,-152.0,0.00015376,2]
[359111201,1745712633192,-2717.32569941,0.00015653,2]
[359111202,1745712633202,-833.82122126,0.000159,2]
[359111203,1745712633212,-833.82122113,0.000159,2]
[359111204,1745712633222,-1291.33578643,0.00016167,2]
[359111205,1745712633233,-2717.32569941,0.00016338,2]
[359111206,1745712633243,-587.0,0.0001642,2]
[359111207,1745712633253,-500.0,0.00016438,2]
[359111208,1745712633263,-500.0,0.00016438,2]
[359111209,1745712633273,-502.86542709,0.00016438,2]
[359111210,1745712633283,-500.0,0.00016438,2]
[359111211,1745712633294,-500.0,0.00016438,2]
[359111212,1745712633308,-500.0,0.00016438,2]
[359111213,1745712633318,-500.0,0.00016438,2]
[359111214,1745712633328,-500.0,0.00016438,2]
[359111215,1745712633339,-400.0,0.00016438,2]
[359111216,1745712633350,-400.0,0.00016438,2]
[359111217,1745712633360,-400.0,0.00016438,2]
[359111218,1745712633370,-400.0,0.00016438,2]
[359111219,1745712633383,-400.0,0.00016438,2]
[359111220,1745712633394,-400.0,0.00016438,2]
[359111221,1745712633404,-500.0,0.00016438,2]
[359111222,1745712633414,-502.94132441,0.00016438,2]
[359111223,1745712633423,-500.0,0.00016438,2]
[359111224,1745712633433,-400.0,0.00016438,2]
[359111225,1745712633443,-400.0,0.00016438,2]
[359111226,1745712633453,-400.0,0.00016438,2]
[359111227,1745712633463,-400.0,0.00016438,2]
[359111228,1745712633472,-400.0,0.00016438,2]
[359111229,1745712633483,-400.0,0.00016438,2]
[359111230,1745712633492,-400.0,0.00016438,2]
[359111231,1745712633502,-400.0,0.00016438,2]
[359111232,1745712633512,-400.0,0.00016438,2]
[359111233,1745712633521,-306.77,0.00016438,2]
[359111234,1745712633531,-506.20099336,0.00016438,2]
[359111235,1745712633541,-503.84025225,0.00016438,2]
[359111236,1745712633551,-400.0,0.00016438,2]
[359111237,1745712633560,-400.0,0.00016438,2]
[359111238,1745712633570,-400.0,0.00016438,2]
[359111239,1745712633580,-400.0,0.00016438,2]
[359111240,1745712633590,-400.0,0.00016438,2]
[359111241,1745712633600,-400.0,0.00016438,2]
[359111242,1745712633610,-503.59667622,0.00016438,2]
[359111243,1745712633620,-288.07419625,0.00016438,2]
[359111244,1745712633630,-501.90883302,0.00016438,2]
[359111245,1745712633639,-400.0,0.00016438,2]
[359111246,1745712633650,-400.0,0.00016438,2]
[359111247,1745712633659,-400.0,0.00016438,2]
[359111248,1745712633670,-400.0,0.00016438,2]
[359111249,1745712633680,-511.66564667,0.00016438,2]
[359111250,1745712633690,-400.0,0.00016438,2]
[359111251,1745712633700,-202.46614667,0.00016438,2]
[359111252,1745712633709,-400.0,0.00016438,2]
[359111253,1745712633719,-400.0,0.00016438,2]
[359111254,1745712633729,-400.0,0.00016438,2]
[359111255,1745712633739,-400.0,0.00016438,2]
[359111256,1745712633750,-400.0,0.00016438,2]
[359111257,1745712633760,-400.0,0.00016438,2]
[359111258,1745712633770,-400.0,0.00016438,2]
[359111259,1745712633779,-500.0,0.00016438,2]
[359111260,1745712633790,-400.0,0.00016438,2]
[359111261,1745712633800,-400.0,0.00016438,2]
[359111262,1745712633810,-500.0,0.00016438,2]
[359111263,1745712633819,-500.0,0.00016438,2]
[359111264,1745712633829,-500.0,0.00016438,2]
[359111265,1745712633839,-500.0,0.00016438,2]
[359111266,1745712633848,-500.0,0.00016438,2]
[359111267,1745712633858,-400.0,0.00016438,2]
[359111268,1745712633868,-400.0,0.00016438,2]
[359111269,1745712633878,-400.0,0.00016438,2]
[359111270,1745712633888,-400.0,0.00016438,2]
[359111271,1745712633898,-400.0,0.00016438,2]
[359111272,1745712633908,-400.0,0.00016438,2]
[359111273,1745712633918,-500.0,0.00016438,2]
[359111274,1745712633928,-400.0,0.00016438,2]
[359111275,1745712633938,-400.0,0.00016438,2]
[359111276,1745712633949,-400.0,0.00016438,2]
[359111277,1745712633960,-400.0,0.00016438,2]
[359111278,1745712633970,-500.0,0.00016438,2]
[359111279,1745712633981,-500.0,0.00016438,2]
[359111280,1745712633990,-500.0,0.00016438,2]
[359111281,1745712634000,-500.0,0.00016438,2]
[359111282,1745712634010,-400.0,0.00016438,2]
[359111283,1745712634019,-500.0,0.00016438,2]
[359111284,1745712634030,-500.0,0.00016438,2]
[359111285,1745712634040,-400.0,0.00016438,2]
[359111286,1745712634051,-500.0,0.00016438,2]
[359111287,1745712634060,-430.47,0.00016438,2]
[359111288,1745712634071,-400.0,0.00016438,2]
[359111289,1745712634081,-500.0,0.00016438,2]
[359111290,1745712634090,-500.0,0.00016438,2]
[359111291,1745712634100,-500.0,0.00016438,2]
[359111292,1745712634110,-400.0,0.00016438,2]
[359111293,1745712634120,-400.0,0.00016438,2]
[359111294,1745712634130,-400.0,0.00016438,2]
[359111295,1745712634140,-400.0,0.00016438,2]
[359111296,1745712634149,-400.0,0.00016438,2]
[359111297,1745712634159,-400.0,0.00016438,2]
[359111298,1745712634170,-400.0,0.00016438,2]
[359111299,1745712634179,-500.0,0.00016438,2]
[359111300,1745712634189,-400.0,0.00016438,2]
[359111301,1745712634199,-500.0,0.00016438,2]
[359111302,1745712634209,-500.0,0.00016438,2]
[359111303,1745712634219,-400.0,0.00016438,2]
[359111304,1745712634229,-400.0,0.00016438,2]
[359111305,1745712634239,-500.0,0.00016438,2]
[359111306,1745712634250,-400.0,0.00016438,2]
[359111307,1745712634260,-400.0,0.00016438,2]
[359111308,1745712634270,-500.0,0.00016438,2]
[359111309,1745712634280,-400.0,0.00016438,2]
[359111310,1745712634290,-500.0,0.00016438,2]
[359111311,1745712634302,-400.0,0.00016438,2]
[359111312,1745712634311,-400.0,0.00016438,2]
[359111313,1745712634321,-291.16103928,0.00016438,2]
[359111314,1745712634331,-500.0,0.00016438,2]
[359111315,1745712634342,-194.83028064,0.00016438,2]
[359111316,1745712634351,-400.0,0.00016438,2]
[359111317,1745712634361,-400.0,0.00016438,2]
[359111318,1745712634372,-504.08410395,0.00016438,2]
[359111319,1745712634384,-400.0,0.00016438,2]
[359111320,1745712634395,-500.0,0.00016438,2]
[359111321,1745712634404,-400.0,0.00016438,2]
[359111322,1745712634414,-400.0,0.00016438,2]
[359111323,1745712634424,-500.0,0.00016438,2]
[359111324,1745712634433,-500.0,0.00016438,2]
[359111325,1745712634443,-400.0,0.00016438,2]
[359111326,1745712634452,-400.0,0.00016438,2]
[359111327,1745712634462,-500.0,0.00016438,2]
[359111328,1745712634472,-500.0,0.00016438,2]
[359111329,1745712634483,-400.0,0.00016438,2]
[359111330,1745712634492,-400.0,0.00016438,2]
[359111331,1745712634502,-500.0,0.00016438,2]
[359111332,1745712634512,-500.0,0.00016438,2]
[359111333,1745712634522,-500.0,0.00016438,2]
[359111334,1745712634532,-500.0,0.00016438,2]
[359111335,1745712634542,-500.0,0.00016438,2]
[359111336,1745712634551,-500.0,0.00016438,2]
[359111337,1745712634562,-400.0,0.00016438,2]
[359111338,1745712634571,-400.0,0.00016438,2]
[359111339,1745712634581,-400.0,0.00016438,2]
[359111340,1745712634590,-400.0,0.00016438,2]
[359111341,1745712634599,-400.0,0.00016438,2]
[359111342,1745712634731,-400.0,0.00016438,2]
[359111343,1745712634770,-400.0,0.00016438,2]
[359111344,1745712634780,-500.0,0.00016438,2]
[359111345,1745712634790,-400.0,0.00016438,2]
[359111346,1745712634801,-400.0,0.00016438,2]
[359111347,1745712634811,-500.0,0.00016438,2]
[359111348,1745712634821,-400.0,0.00016438,2]
[359111349,1745712634831,-400.0,0.00016438,2]
[359111350,1745712634842,-500.0,0.00016438,2]
[359111351,1745712634852,-500.0,0.00016438,2]
[359111352,1745712634862,-400.0,0.00016438,2]
[359111353,1745712634872,-400.0,0.00016438,2]
[359111354,1745712634884,-505.20174757,0.00016438,2]
[359111355,1745712634895,-500.0,0.00016438,2]
[359111356,1745712634905,-500.0,0.00016438,2]
[359111357,1745712634915,-500.0,0.00016438,2]
[359111358,1745712634925,-500.0,0.00016438,2]
[359111359,1745712634935,-500.0,0.00016438,2]
[359111360,1745712634946,-400.0,0.00016438,2]
[359111361,1745712634956,-400.0,0.00016438,2]
[359111362,1745712634966,-400.0,0.00016438,2]
[359111363,1745712634976,-400.0,0.00016438,2]
[359111364,1745712634989,-400.0,0.00016438,2]
[359111365,1745712634999,-400.0,0.00016438,2]
[359111366,1745712635010,-400.0,0.00016438,2]
[359111367,1745712635020,-400.0,0.00016438,2]
[359111368,1745712635029,-400.0,0.00016438,2]
[359111369,1745712635040,-400.0,0.00016438,2]
[359111370,1745712635050,-400.0,0.00016438,2]
[359111371,1745712635060,-400.0,0.00016438,2]
[359111372,1745712635070,-400.0,0.00016438,2]
[359111373,1745712635080,-500.0,0.00016438,2]
[359111374,1745712635091,-500.0,0.00016438,2]
[359111375,1745712635103,-200.0,0.00016438,2]
[359111376,1745712635113,-400.0,0.00016438,2]
[359111377,1745712635123,-400.0,0.00016438,2]
[359111378,1745712635134,-400.0,0.00016438,2]
[359111379,1745712635143,-400.0,0.00016438,2]
[359111380,1745712635154,-500.0,0.00016438,2]
[359111381,1745712635164,-400.0,0.00016438,2]
[359111382,1745712635174,-400.0,0.00016438,2]
[359111383,1745712635184,-400.0,0.00016438,2]
[359111384,1745712635194,-400.0,0.00016438,2]
[359111385,1745712635204,-500.0,0.00016438,2]
[359111386,1745712635215,-527.59605549,0.00016438,2]
[359111387,1745712635224,-400.0,0.00016438,2]
[359111388,1745712635235,-400.0,0.00016438,2]
[359111389,1745712635245,-400.0,0.00016438,2]
[359111390,1745712635256,-400.0,0.00016438,2]
[359111391,1745712635267,-507.76,0.00016438,2]
[359111392,1745712635277,-400.0,0.00016438,2]
[359111393,1745712635287,-400.0,0.00016438,2]
[359111394,1745712635301,-500.0,0.00016438,2]
[359111395,1745712635313,-400.0,0.00016438,2]
[359111396,1745712635322,-400.0,0.00016438,2]
[359111397,1745712635332,-400.0,0.00016438,2]
[359111398,1745712635343,-500.0,0.00016438,2]
[359111399,1745712635355,-500.0,0.00016438,2]
[359111400,1745712635366,-400.0,0.00016438,2]
[359111401,1745712635379,-400.0,0.00016438,2]
[359111402,1745712635389,-500.0,0.00016438,2]
[359111403,1745712635399,-400.0,0.00016438,2]
[359111404,1745712635410,-400.0,0.00016438,2]
[359111405,1745712635420,-400.0,0.00016438,2]
[359111406,1745712635430,-500.0,0.00016438,2]
[359111407,1745712635440,-400.0,0.00016438,2]
[359111408,1745712635451,-400.0,0.00016438,2]
[359111409,1745712635463,-400.0,0.00016438,2]
[359111410,1745712635473,-400.0,0.00016438,2]
[359111411,1745712635484,-400.0,0.00016438,2]
[359111412,1745712635495,-400.0,0.00016438,2]
[359111413,1745712635505,-507.99274926,0.00016438,2]
[359111414,1745712635516,-400.0,0.00016438,2]
[359111415,1745712635525,-200.0,0.00016438,2]
[359111416,1745712635536,-400.0,0.00016438,2]
[359111417,1745712635546,-400.0,0.00016438,2]
[359111418,1745712635556,-400.0,0.00016438,2]
[359111419,1745712635567,-500.0,0.00016438,2]
[359111420,1745712635577,-400.0,0.00016438,2]
[359111421,1745712635587,-400.0,0.00016438,2]
[359111422,1745712635597,-400.0,0.00016438,2]
[359111423,1745712635607,-400.0,0.00016438,2]
[359111424,1745712635617,-400.0,0.00016438,2]
[359111425,1745712635627,-400.0,0.00016438,2]
[359111426,1745712635637,-400.0,0.00016438,2]
[359111427,1745712635647,-400.0,0.00016438,2]
[359111428,1745712635658,-400.0,0.00016438,2]
[359111429,1745712635668,-400.0,0.00016438,2]
[359111430,1745712635678,-400.0,0.00016438,2]
[359111431,1745712635690,-400.0,0.00016438,2]
[359111432,1745712635703,-400.0,0.00016438,2]
[359111433,1745712635713,-464.239673,0.00016438,2]
[359111434,1745712635724,-400.0,0.00016438,2]
[359111435,1745712635736,-400.0,0.00016438,2]
[359111436,1745712635746,-500.0,0.00016438,2]
[359111437,1745712635756,-400.0,0.00016438,2]
[359111438,1745712635765,-1959.78,0.00016438,2]
[359111439,1745712635775,-200.0,0.00016438,2]
[359111440,1745712635785,-595.61,0.00016438,2]
[359111441,1745712635794,-400.0,0.00016438,2]
[359111442,1745712635804,-400.0,0.00016438,2]
[359111443,1745712635815,-1587.77,0.00016438,2]
[359111444,1745712635825,-400.0,0.00016438,2]
[359111445,1745712635835,-400.0,0.00016438,2]
[359111446,1745712635845,-400.0,0.00016438,2]
[359111447,1745712635854,-500.0,0.00016438,2]
[359111448,1745712635864,-400.0,0.00016438,2]
[359111449,1745712635874,-400.0,0.00016438,2]
[359111450,1745712635884,-400.0,0.00016438,2]
[359111451,1745712635893,-400.0,0.00016438,2]
[359111452,1745712635903,-400.0,0.00016438,2]
[359111453,1745712635913,-500.0,0.00016438,2]
[359111454,1745712635922,-500.0,0.00016438,2]